bitfinex/quotes_SOLUSD_20240703
["timestamp","ask_amount","ask_price","bid_price","bid_amount"]
[1720025062215,0.17,142.05,141.95,46.88]
[1720025063423,20.0,142.06,141.95,46.88]
[1720025063636,20.0,142.06,141.96,0.17]
[1720025063955,13.36,142.06,142.01,13.36]
[1720025064116,34.8605,142.09,142.04,13.36]
[1720025064645,13.36,142.08,142.03,13.36]
[1720025065724,21.5005,142.09,142.0,15.1154]
[1720025066243,28.5383,142.09,142.0,15.1154]
[1720025067253,29.3061,142.13,142.01,0.17]
[1720025067445,29.59561048,142.12,142.01,27.05]
[1720025067827,7.0368,142.11,142.01,27.05]
[1720025068326,29.59561048,142.12,142.01,27.05]
[1720025068952,0.17,142.11,142.01,27.05]
[1720025069459,7.2068,142.11,142.01,27.05]
[1720025070137,2.55911048,142.12,142.04,26.71]
[1720025070337,2.55911048,142.12,142.06,26.71]
[1720025070543,2.55911048,142.12,142.07,0.17]
[1720025071242,7.0348,142.15,142.06,26.71]
[1720025071551,21.9615,142.17,142.05,0.34]
[1720025071750,7.0348,142.15,142.06,26.71]
[1720025073633,27.0344,142.16,142.06,26.71]
[1720025074138,27.0344,142.16,142.08,15.3226]
[1720025076130,7.0348,142.15,142.08,15.3226]
[1720025076331,20.0,142.14,142.08,15.3226]
[1720025078148,20.0,142.15,142.08,15.3226]
[1720025078459,20.0,142.16,142.08,15.3226]
[1720025078660,2.58069339,142.17,142.08,15.3226]
[1720025078859,2.58069339,142.17,142.08,42.0326]
[1720025079055,2.58069339,142.17,142.09,0.17]
[1720025079738,2.58069339,142.17,142.09,20.17]
[1720025080137,9.61449339,142.17,142.09,20.17]
[1720025080531,2.58069339,142.17,142.09,20.17]
[1720025081546,9.61449339,142.17,142.09,20.17]
[1720025082070,2.58069339,142.17,142.09,20.17]
[1720025084045,20.0,142.19,142.1,0.17]
[1720025084244,20.0,142.2,142.1,26.88]
[1720025084478,20.0,142.2,142.11,0.17]
[1720025084646,20.0,142.2,142.11,20.17]
[1720025085768,13.33,142.19,142.14,13.33]
[1720025086955,13.33,142.19,142.11,20.17]
[1720025086956,13.33,142.17,142.11,20.0]
[1720025087279,13.33,142.17,142.13,13.33]
[1720025088072,13.33,142.17,142.12,13.33]
[1720025088260,13.33,142.17,142.13,13.33]
[1720025088662,13.33,142.18,142.13,13.33]
[1720025089178,27.0324,142.2,142.1,13.33]
[1720025089360,13.33,142.18,142.14,13.33]
[1720025090285,13.33,142.18,142.13,13.33]
[1720025090950,13.33,142.19,142.1,13.33]
[1720025091151,13.33,142.19,142.14,13.33]
[1720025091382,27.0323,142.2,142.14,13.33]
[1720025091550,13.33,142.19,142.14,13.33]
[1720025092454,20.0,142.2,142.15,15.1313]
[1720025092790,13.33,142.22,142.17,13.33]
[1720025093158,22.1395,142.24,142.17,13.33]
[1720025093355,19.7795,142.24,142.19,13.33]
[1720025093862,19.7795,142.24,142.17,13.33]
[1720025093863,13.33,142.22,142.17,13.33]
[1720025094247,13.33,142.23,142.18,13.33]
[1720025094679,20.0,142.22,142.18,13.33]
[1720025095860,33.33,142.22,142.15,15.1313]
[1720025096058,33.33,142.22,142.17,13.33]
[1720025096467,40.3614,142.22,142.15,15.1313]
[1720025096678,13.33,142.21,142.17,13.33]
[1720025097054,13.33,142.19,142.15,15.1313]
[1720025097254,7.0321,142.21,142.15,28.4613]
[1720025097480,13.33,142.2,142.15,28.4613]
[1720025097793,7.0321,142.21,142.15,15.1313]
[1720025098157,27.2015,142.22,142.15,15.1313]
[1720025098363,20.0,142.22,142.15,15.1313]
[1720025098563,20.0,142.23,142.15,15.1313]
[1720025098762,9.61129339,142.24,142.15,15.1313]
[1720025098974,20.0,142.23,142.15,15.1313]
[1720025099294,20.0,142.23,142.16,0.17]
[1720025099629,22.58069339,142.24,142.16,0.17]
[1720025100088,22.58069339,142.24,142.15,15.1313]
[1720025100257,7.031,142.23,142.15,15.1313]
[1720025100456,20.0,142.22,142.15,15.1313]
[1720025100889,27.0315,142.22,142.15,15.1313]
[1720025101059,7.0318,142.21,142.15,15.1313]
[1720025101457,37.5792,142.22,142.11,15.991]
[1720025101788,7.0331,142.19,142.11,15.991]
[1720025102599,0.34,142.21,142.11,15.991]
[1720025102781,27.3112,142.16,142.06,15.4122]
[1720025102975,44.8975,142.16,142.06,15.4122]
[1720025103290,42.4642,142.14,142.06,15.4122]
[1720025103481,7.0371,142.11,142.06,15.4122]
[1720025103800,7.0369,142.11,142.02,16.4542]
[1720025103967,7.0373,142.1,142.02,16.4542]
[1720025104168,0.17,142.11,142.02,16.4542]
[1720025104392,7.0369,142.11,142.02,16.4542]
[1720025104613,7.2073,142.1,142.02,16.4542]
[1720025104792,0.17,142.12,142.02,16.4542]
[1720025105097,20.17,142.12,142.02,16.4542]
[1720025105294,0.17,142.11,142.02,16.4542]
[1720025105499,20.17,142.12,142.02,16.4542]
[1720025106376,20.0,142.12,142.02,16.4542]
[1720025106683,20.0,142.12,142.03,0.34]
[1720025106867,20.0,142.13,142.03,0.34]
[1720025107069,41.2,142.13,142.03,0.17]
[1720025107299,41.2,142.13,142.02,16.4542]
[1720025107300,20.0,142.13,142.02,16.4542]
[1720025107781,7.3763,142.12,142.02,16.4542]
[1720025108284,7.0368,142.11,142.02,16.4542]
[1720025108478,7.0375,142.1,142.02,16.4542]
[1720025108691,0.34,142.12,142.02,16.4542]
[1720025108692,7.0381,142.09,142.02,16.4542]
[1720025108905,7.032,142.21,142.08,15.2186]
[1720025109069,7.0315,142.22,142.1,26.66]
[1720025109274,7.0315,142.22,142.11,20.0]
[1720025109496,21.8117,142.23,142.1,26.66]
[1720025109705,7.0324,142.2,142.11,20.0]
[1720025110003,21.8117,142.23,142.11,20.0]
[1720025110004,7.0329,142.19,142.11,20.0]
[1720025110178,7.0329,142.19,142.09,20.0]
[1720025110902,21.2,142.22,142.09,20.0]
[1720025111094,29.61279339,142.21,142.09,20.0]
[1720025111287,2.92069339,142.2,142.09,20.0]
[1720025111601,2.58069339,142.19,142.09,20.0]
[1720025112172,2.58069339,142.19,142.08,15.3886]
[1720025112497,22.58069339,142.19,142.08,15.2186]
[1720025112712,20.17,142.18,142.09,0.17]
[1720025113370,0.17,142.18,142.09,0.17]
[1720025113688,0.17,142.18,142.09,20.0]
[1720025113889,21.54,142.18,142.08,15.2186]
[1720025114204,7.0348,142.15,142.08,15.2186]
[1720025114398,23.5166,142.15,142.04,26.66]
[1720025114578,16.4818,142.15,142.04,26.66]
[1720025114775,16.4818,142.15,142.03,32.17233936]
[1720025115096,0.17,142.14,142.03,48.31543315]
[1720025115276,29.95609339,142.14,142.03,42.4854]
[1720025115695,22.58069339,142.14,142.04,0.17]
[1720025116279,22.58069339,142.14,142.04,0.34]
[1720025116492,22.58069339,142.14,142.04,20.34]
[1720025117508,22.58069339,142.14,142.06,26.66]
[1720025119479,7.0362,142.13,142.04,30.86171403]
[1720025119799,7.0363,142.12,142.04,20.17]
[1720025120101,7.0359,142.13,142.04,20.17]
[1720025121810,22.75069339,142.14,142.04,0.17]
[1720025121811,7.0363,142.12,142.04,0.17]
[1720025122122,7.2059,142.13,142.04,0.17]
[1720025122275,20.0,142.12,142.04,0.17]
[1720025123797,27.0364,142.12,142.04,0.17]
[1720025124109,20.0,142.12,142.04,0.17]
[1720025124288,22.58069339,142.14,142.04,0.17]
[1720025124625,7.0363,142.12,142.04,0.17]
[1720025125107,7.206,142.13,142.03,42.4854]
[1720025125409,20.0,142.12,142.04,0.17]
[1720025125617,22.58069339,142.14,142.06,26.66]
[1720025126699,7.0361,142.13,142.06,26.66]
[1720025127096,29.61619339,142.14,142.06,26.66]
[1720025127320,2.58069339,142.14,142.06,26.66]
[1720025127606,6.3395,142.17,142.07,20.34]
[1720025127821,13.3734,142.17,142.07,47.0]
[1720025128690,7.0335,142.18,142.08,16.2692]
[1720025128890,16.2524,142.19,142.1,26.66]
[1720025129085,23.2855,142.19,142.1,26.66]
[1720025129399,23.2855,142.19,142.11,0.17]
[1720025129905,16.2524,142.19,142.11,0.17]
[1720025130292,7.0324,142.2,142.11,0.17]
[1720025130293,7.0323,142.2,142.11,20.17]
[1720025131015,7.0329,142.19,142.11,20.17]
[1720025132416,6.5279,142.21,142.11,20.17]
[1720025132595,7.2024,142.2,142.11,20.17]
[1720025132803,27.2024,142.2,142.11,20.17]
[1720025133608,7.0328,142.19,142.11,20.17]
[1720025133810,6.5328,142.19,142.11,20.17]
[1720025134314,6.5328,142.19,142.11,0.17]
[1720025134511,6.5328,142.19,142.11,20.17]
[1720025134711,27.2025,142.2,142.11,20.17]
[1720025135211,20.17,142.2,142.11,20.17]
[1720025135416,20.17,142.2,142.13,26.66]
[1720025135803,0.17,142.2,142.13,26.66]
[1720025136419,15.0093,142.23,142.14,15.9354]
[1720025136597,6.5165,142.25,142.16,26.66]
[1720025136598,13.5464,142.25,142.16,26.66]
[1720025136795,15.0293,142.26,142.18,26.66]
[1720025139004,15.0293,142.26,142.18,26.66]
[1720025139217,22.0587,142.26,142.18,26.66]
[1720025140212,7.0294,142.26,142.18,26.66]
[1720025140424,7.8720844,142.27,142.18,26.66]
[1720025140616,20.0,142.26,142.18,26.66]
[1720025141631,27.0294,142.26,142.18,26.66]
[1720025142330,26.66,142.4,142.28,121.2]
[1720025142506,26.66,142.4,142.35,26.66]
[1720025142824,26.66,142.4,142.29,27.39120669]
[1720025142825,13.4777,142.43,142.29,27.39120669]
[1720025142997,6.4563,142.43,142.32,26.66]
[1720025143201,6.4563,142.43,142.33,20.34]
[1720025143617,6.4563,142.43,142.35,26.66]
[1720025144401,7.0216,142.42,142.33,20.17]
[1720025144651,7.0216,142.42,142.32,26.66]
[1720025145129,13.4773,142.43,142.32,26.66]
[1720025145434,6.4563,142.43,142.35,26.66]
[1720025145804,6.4563,142.43,142.33,0.17]
[1720025146011,6.4563,142.43,142.32,20.17]
[1720025146201,6.4563,142.43,142.33,0.17]
[1720025146716,6.4563,142.43,142.34,23.5077]
[1720025147223,7.0217,142.42,142.34,23.5077]
[1720025148029,7.1917,142.42,142.34,23.5077]
[1720025148405,0.17,142.42,142.32,0.17]
[1720025148718,20.0,142.42,142.32,7.3617]
[1720025148925,27.0215,142.42,142.32,7.3617]
[1720025149228,20.0,142.42,142.32,7.3617]
[1720025149530,27.0214,142.42,142.32,7.3617]
[1720025150123,20.0,142.42,142.32,7.3617]
[1720025150504,7.8649844,142.41,142.32,7.3617]
[1720025150712,7.0225,142.4,142.32,7.1917]
[1720025150912,0.8430844,142.41,142.32,7.1917]
[1720025151115,7.1925,142.4,142.32,7.1917]
[1720025151307,0.17,142.39,142.32,7.1917]
[1720025151519,7.193,142.39,142.32,7.1917]
[1720025151728,0.17,142.38,142.32,7.1917]
[1720025152031,0.17,142.4,142.32,7.1917]
[1720025152032,7.1929,142.39,142.32,7.1917]
[1720025152218,7.0229,142.39,142.32,7.1917]
[1720025152834,0.17,142.38,142.32,7.1917]
[1720025153230,7.1926,142.4,142.32,7.1917]
[1720025153424,0.17,142.39,142.32,7.1917]
[1720025154022,0.17,142.4,142.32,7.1917]
[1720025154324,1.0130844,142.41,142.32,7.1917]
[1720025154527,0.8430844,142.41,142.32,7.1917]
[1720025154710,0.8430844,142.41,142.33,0.17]
[1720025155218,7.8650844,142.41,142.32,7.1917]
[1720025156309,0.8430844,142.41,142.33,0.17]
[1720025156718,0.8430844,142.41,142.32,7.1917]
[1720025158943,7.0224,142.4,142.32,7.1917]
[1720025159316,7.8651844,142.41,142.32,7.1917]
[1720025159839,7.0225,142.4,142.32,7.1917]
[1720025160345,7.024,142.37,142.32,7.1917]
[1720025160649,7.024,142.37,142.24,3.4232]
[1720025160650,47.2703,142.36,142.24,3.4232]
[1720025160811,7.0268,142.32,142.2,22.02772275]
[1720025161010,65.1716,142.36,142.22,22.043084]
[1720025161212,21.2,142.33,142.22,22.043084]
[1720025161517,17.5638,142.34,142.2,16.4275]
[1720025161518,7.028,142.29,142.2,16.4275]
[1720025162048,0.17,142.3,142.2,16.4275]
[1720025162341,20.17,142.3,142.2,16.4275]
[1720025162640,7.0279,142.29,142.2,16.4275]
[1720025163138,0.17,142.28,142.21,30.0]
[1720025163338,0.17,142.29,142.21,30.0]
[1720025164940,7.028,142.29,142.21,30.0]
[1720025165145,0.17,142.28,142.21,30.0]
[1720025165843,7.3679,142.29,142.21,30.0]
[1720025166243,7.0294,142.26,142.19,22.043084]
[1720025166450,7.0299,142.25,142.19,22.043084]
[1720025166745,6.4763,142.28,142.19,22.043084]
[1720025167045,27.1989,142.27,142.16,16.1062]
[1720025167235,7.0299,142.25,142.16,16.1062]
[1720025167939,20.17,142.27,142.17,22.043084]
[1720025168259,7.031,142.23,142.17,22.043084]
[1720025168553,7.0312,142.23,142.13,15.6972]
[1720025168853,0.17,142.22,142.14,30.0]
[1720025169152,0.17,142.22,142.13,37.740284]
[1720025169446,7.3714,142.22,142.13,37.740284]
[1720025170529,7.3715,142.22,142.13,37.740284]
[1720025170728,7.3715,142.22,142.11,7.31313107]
[1720025170729,7.0328,142.19,142.11,7.31313107]
[1720025170940,6.2138,142.2,142.09,16.156]
[1720025171145,7.0338,142.17,142.09,37.356]
[1720025171355,7.0338,142.17,142.09,21.2]
[1720025171660,7.0338,142.17,142.05,23.219]
[1720025171841,7.0338,142.17,142.06,64.4768]
[1720025172041,7.0338,142.17,142.06,27.4138]
[1720025172737,7.0335,142.18,142.07,0.34]
[1720025172942,20.17,142.17,142.07,0.34]
[1720025173162,27.373,142.19,142.07,0.34]
[1720025173853,7.0334,142.18,142.07,0.34]
[1720025174050,20.17,142.17,142.07,0.34]
[1720025174257,27.2039,142.17,142.07,0.34]
[1720025174556,21.2,142.15,142.06,27.4138]
[1720025174865,21.395,142.22,142.09,100.0]
[1720025175042,6.3479,142.22,142.1,29.89]
[1720025176057,6.3479,142.22,142.11,20.17]
[1720025176432,13.3793,142.22,142.12,0.17]
[1720025176953,6.3479,142.22,142.12,0.17]
[1720025178940,0.17,142.21,142.11,20.17]
[1720025181345,7.3723,142.21,142.11,20.0]
[1720025181545,7.3723,142.21,142.1,29.89]
[1720025182148,7.0324,142.2,142.1,29.89]
[1720025182358,0.17,142.19,142.1,29.89]
[1720025182555,0.34,142.19,142.1,29.89]
[1720025182877,7.3728,142.19,142.1,29.89]
[1720025183063,0.17,142.19,142.1,29.89]
[1720025183363,0.34,142.2,142.1,29.89]
[1720025184549,7.0329,142.19,142.1,29.89]
[1720025184752,0.34,142.2,142.1,29.89]
[1720025185349,7.3723,142.2,142.1,29.89]
[1720025185545,7.0329,142.19,142.1,29.89]
[1720025186681,7.0333,142.18,142.09,0.17]
[1720025186856,7.0333,142.18,142.09,20.0]
[1720025187249,22.0708,142.19,142.09,20.0]
[1720025187451,0.17,142.18,142.09,20.0]
[1720025187660,15.0379,142.19,142.09,20.0]
[1720025188144,15.0379,142.19,142.1,0.17]
[1720025188575,6.3479,142.22,142.1,0.17]
[1720025188758,6.3479,142.22,142.11,29.89]
[1720025188963,7.0318,142.21,142.12,0.17]
[1720025189167,6.3479,142.22,142.11,29.89]
[1720025189358,7.0334,142.18,142.09,20.0]
[1720025190182,23.9266,142.22,142.08,5.70574109]
[1720025190183,7.0344,142.16,142.08,5.70574109]
[1720025190353,0.17,142.17,142.07,16.5149]
[1720025190552,7.2039,142.17,142.07,16.5149]
[1720025190850,0.17,142.17,142.07,16.5149]
[1720025191068,7.204,142.17,142.07,16.5149]
[1720025191582,0.17,142.17,142.07,16.5149]
[1720025191788,0.17,142.17,142.08,0.17]
[1720025192149,0.17,142.18,142.08,0.34]
[1720025192350,7.2033,142.18,142.08,0.34]
[1720025192657,0.17,142.18,142.08,0.34]
[1720025193252,20.0,142.19,142.08,0.34]
[1720025193458,6.3479,142.22,142.08,0.34]
[1720025193663,6.3479,142.22,142.1,29.89]
[1720025193882,6.3479,142.22,142.11,20.34]
[1720025194595,6.6023,142.26,142.12,16.1867]
[1720025194759,7.0302,142.25,142.13,0.34]
[1720025194961,7.0302,142.25,142.13,20.34]
[1720025195572,27.8023,142.26,142.13,20.34]
[1720025195771,7.0309,142.23,142.13,20.34]
[1720025196386,21.2,142.24,142.13,20.17]
[1720025196587,21.2,142.24,142.13,20.0]
[1720025196883,0.34,142.23,142.12,16.1867]
[1720025198284,21.2,142.22,142.12,16.1867]
[1720025198585,17.5808,142.2,142.12,16.1867]
[1720025198762,6.7898,142.19,142.08,16.1921]
[1720025198964,7.0334,142.18,142.08,16.1921]
[1720025199182,7.0338,142.17,142.08,16.1921]
[1720025199385,13.8227,142.19,142.08,16.1921]
[1720025200389,13.8227,142.19,142.09,0.17]
[1720025200789,13.8227,142.19,142.08,16.1921]
[1720025200790,7.0338,142.17,142.08,16.1921]
[1720025200962,7.0351,142.15,142.08,16.1921]
[1720025201369,17.5849,142.17,142.05,16.195]
[1720025201567,41.2,142.16,142.05,16.195]
[1720025201775,7.036,142.13,142.05,16.195]
[1720025202064,0.34,142.15,142.04,21.395]
[1720025202065,7.0364,142.12,142.04,21.395]
[1720025202261,22.1031,142.11,142.04,21.395]
[1720025202466,29.14,142.11,142.02,253.7]
[1720025202688,29.14,142.11,142.01,28.195606]
[1720025202992,7.0373,142.1,142.01,28.195606]
[1720025203287,29.14,142.11,142.01,28.195606]
[1720025203872,22.1031,142.11,142.01,28.195606]
[1720025204086,13.6808,142.24,142.08,51.09]
[1720025204289,13.6808,142.24,142.1,15.1801]
[1720025204290,7.0311,142.23,142.1,15.1801]
[1720025204589,6.6502,142.24,142.12,29.89]
[1720025204892,6.6502,142.24,142.13,1.74633059]
[1720025205209,6.6502,142.24,142.13,39.31573059]
[1720025205372,6.6502,142.24,142.14,10.53230264]
[1720025205572,6.6502,142.24,142.15,1.57613273]
[1720025205902,6.6502,142.24,142.15,1.40613273]
[1720025206093,13.6807,142.24,142.13,48.44170264]
[1720025206482,13.6807,142.24,142.14,1.40668588]
[1720025206797,13.6807,142.24,142.13,48.44170264]
[1720025207170,6.6502,142.24,142.13,48.44170264]
[1720025207376,7.029,142.27,142.13,37.9094]
[1720025207580,6.5134,142.28,142.14,11.93765115]
[1720025207581,13.5418,142.28,142.14,11.93765115]
[1720025207778,13.5418,142.28,142.15,21.74524964]
[1720025207978,6.5134,142.28,142.15,21.74524964]
[1720025208286,22.4633,142.3,142.17,40.41947832]
[1720025208494,22.4633,142.3,142.18,1.74604663]
[1720025208693,15.4359,142.3,142.18,21.74604663]
[1720025209081,22.4633,142.3,142.18,21.74604663]
[1720025209282,22.4633,142.3,142.18,32.27552495]
[1720025210373,0.17,142.29,142.18,21.74604663]
[1720025211700,0.17,142.29,142.18,20.34]
[1720025211874,7.029,142.27,142.18,20.0]
[1720025212576,7.0284,142.28,142.18,20.0]
[1720025212775,0.17,142.27,142.18,20.0]
[1720025213188,36.6359,142.3,142.19,0.17]
[1720025213189,22.4636,142.3,142.19,0.17]
[1720025213383,0.17,142.29,142.19,0.34]
[1720025213683,7.0292,142.27,142.18,20.0]
[1720025213893,7.0285,142.28,142.17,30.06]
[1720025214179,0.17,142.27,142.18,0.17]
[1720025215715,0.17,142.27,142.14,10.5368189]
[1720025215716,20.17,142.27,142.14,10.5368189]
[1720025215887,20.17,142.27,142.13,23.83916225]
[1720025215888,7.03,142.25,142.15,20.0]
[1720025216408,7.1994,142.26,142.15,20.0]
[1720025216697,7.1994,142.26,142.13,17.5694]
[1720025216698,0.17,142.25,142.13,17.5694]
[1720025216888,7.031,142.23,142.13,17.5694]
[1720025217090,0.17,142.25,142.13,17.5694]
[1720025217597,0.34,142.26,142.13,17.5694]
[1720025217804,7.3697,142.26,142.13,17.5694]
[1720025218180,7.0299,142.25,142.14,20.17]
[1720025218486,0.34,142.24,142.14,20.0]
[1720025218792,0.34,142.24,142.13,17.7394]
[1720025219096,7.0308,142.23,142.13,17.7394]
[1720025219400,7.3705,142.24,142.13,17.7394]
[1720025219579,7.0308,142.23,142.13,17.7394]
[1720025219786,0.17,142.22,142.13,17.7394]
[1720025220187,7.2015,142.22,142.13,17.7394]
[1720025220484,0.17,142.22,142.13,17.5694]
[1720025220684,0.34,142.22,142.13,17.5694]
[1720025222605,0.34,142.23,142.13,17.5694]
[1720025224093,7.032,142.21,142.13,17.5694]
[1720025224301,6.0505,142.4,142.2,29.89]
[1720025224488,6.0505,142.4,142.32,29.89]
[1720025224804,6.0505,142.4,142.31,29.89]
[1720025225007,6.0505,142.44,142.35,29.89]
[1720025225200,100.0,142.47,142.35,29.89]
[1720025225503,28.1718,142.42,142.32,29.89]
[1720025225696,21.15,142.42,142.33,45.0]
[1720025225890,7.0211,142.43,142.37,7.0237]
[1720025226591,7.0211,142.43,142.38,7.0233]
[1720025226902,7.0211,142.43,142.33,45.0]
[1720025226903,7.0211,142.43,142.37,7.0238]
[1720025227223,117.5506,142.45,142.35,7.0249]
[1720025227507,21.15,142.38,142.23,6.81225]
[1720025227708,7.0245,142.36,142.3,7.0272]
[1720025227892,0.34,142.35,142.31,7.0265]
[1720025228281,7.365,142.35,142.29,7.0275]
[1720025228505,7.365,142.35,142.26,29.89]
[1720025228807,7.0263,142.33,142.27,7.0284]
[1720025228995,0.17,142.32,142.27,7.0284]
[1720025229789,7.3664,142.32,142.27,7.0284]
[1720025230598,0.34,142.32,142.28,7.0282]
[1720025230789,20.34,142.33,142.28,7.0282]
[1720025231605,27.366,142.33,142.28,7.0282]
[1720025232292,27.366,142.33,142.23,6.81225]
[1720025232293,41.49,142.33,142.23,6.81225]
[1720025232801,28.1765,142.32,142.27,7.0288]
[1720025233001,0.34,142.31,142.27,7.0288]
[1720025233385,20.0,142.33,142.23,6.81225]
[1720025233589,20.0,142.34,142.24,45.17]
[1720025233786,27.0255,142.34,142.29,7.0277]
[1720025233986,20.0,142.34,142.24,45.17]
[1720025234201,21.15,142.35,142.24,45.17]
[1720025234410,20.0,142.34,142.24,45.17]
[1720025234815,21.3345,142.38,142.26,29.89]
[1720025235003,27.0242,142.37,142.32,7.0262]
[1720025235203,6.2802,142.38,142.34,7.0253]
[1720025236427,13.3036,142.38,142.34,7.0253]
[1720025237118,7.8652844,142.41,142.36,7.0243]
[1720025237321,7.8652844,142.41,142.31,29.89]
[1720025237322,0.8430844,142.41,142.34,7.025]
[1720025237622,7.024,142.37,142.33,21.15]
[1720025237922,7.024,142.37,142.33,7.0258]
[1720025238222,7.0236,142.38,142.33,7.0258]
[1720025238415,7.0239,142.37,142.32,7.0262]
[1720025238712,7.0244,142.36,142.33,45.0]
[1720025239014,7.0244,142.36,142.31,7.0267]
[1720025239216,7.0244,142.36,142.32,45.0]
[1720025241125,7.0244,142.36,142.31,7.0267]
[1720025241419,0.17,142.35,142.24,29.89]
[1720025241623,7.0255,142.34,142.29,7.0275]
[1720025241816,7.0255,142.34,142.29,14.0519]
[1720025243019,0.34,142.35,142.24,29.89]
[1720025243220,0.34,142.35,142.21,5.62926327]
[1720025243221,38.7162,142.32,142.21,5.62926327]
[1720025243421,7.0275,142.3,142.25,7.0297]
[1720025243938,0.17,142.29,142.25,7.0297]
[1720025244105,0.17,142.29,142.26,7.0292]
[1720025244302,0.17,142.3,142.26,7.0292]
[1720025244504,0.17,142.3,142.27,7.0288]
[1720025244708,7.3669,142.31,142.26,7.0291]
[1720025245418,28.5169,142.31,142.26,7.0291]
[1720025246631,0.34,142.31,142.23,6.31225]
[1720025246817,48.5164,142.32,142.28,7.0282]
[1720025247135,48.5164,142.32,142.27,7.0287]
[1720025247623,7.0269,142.31,142.27,7.0287]
[1720025247833,0.17,142.3,142.27,7.0287]
[1720025248326,0.34,142.3,142.25,7.0293]
[1720025248507,7.0276,142.3,142.25,7.0293]
[1720025249010,7.0276,142.3,142.26,7.0292]
[1720025249404,0.17,142.31,142.24,45.0]
[1720025249817,7.1972,142.31,142.26,7.0291]
[1720025250022,0.17,142.3,142.26,7.0291]
[1720025250234,7.1974,142.3,142.26,7.0291]
[1720025250414,0.17,142.29,142.25,7.0297]
[1720025251124,7.1979,142.29,142.25,7.0297]
[1720025251331,7.0285,142.28,142.23,13.34285]
[1720025251505,7.0289,142.27,142.23,6.31225]
[1720025252014,7.0295,142.26,142.23,6.31225]
[1720025252212,0.17,142.29,142.23,6.31225]
[1720025252403,7.0303,142.24,142.23,6.31225]
[1720025252604,7.2003,142.24,142.23,6.31225]
[1720025253243,0.17,142.24,142.23,6.31225]
[1720025253735,7.2003,142.24,142.23,6.31225]
[1720025254522,0.17,142.24,142.23,6.31225]
[1720025255325,7.3703,142.24,142.23,6.31225]
[1720025255507,7.0308,142.23,142.19,7.0326]
[1720025255709,0.17,142.22,142.19,7.0326]
[1720025255910,0.17,142.22,142.2,7.0322]
[1720025256328,0.34,142.23,142.19,7.0327]
[1720025257121,41.49,142.23,142.16,7.0342]
[1720025257303,7.0319,142.21,142.1,29.89]
[1720025257502,7.2023,142.2,142.16,7.0341]
[1720025257806,0.17,142.19,142.16,7.0341]
[1720025258305,0.34,142.2,142.16,7.0341]
[1720025259026,0.17,142.2,142.17,7.0337]
[1720025259326,0.34,142.21,142.17,7.0337]
[1720025260231,28.5218,142.21,142.16,7.0341]
[1720025262126,7.0325,142.2,142.16,7.0341]